bitfinex/quotes_SOLUSD_20230120
["timestamp","ask_amount","ask_price","bid_price","bid_amount"]
[1674218531322,10.0,21.339,21.323,32.29]
[1674218531541,10.0,21.337,21.323,32.29]
[1674218532146,17.96,21.336,21.322,31.23]
[1674218532353,10.0,21.335,21.322,31.23]
[1674218532572,10.0,21.335,21.321,31.07]
[1674218532788,10.0,21.333,21.321,31.07]
[1674218533194,10.0,21.333,21.321,45.85908664]
[1674218534155,10.0,21.337,21.321,45.85908664]
[1674218534374,10.0,21.337,21.322,41.62678078]
[1674218534688,10.0,21.337,21.321,45.85908664]
[1674218535605,10.0,21.335,21.321,45.85908664]
[1674218536052,10.0,21.335,21.321,14.78908664]
[1674218536468,10.0,21.333,21.319,28.48]
[1674218536683,10.0,21.333,21.32,17.0]
[1674218536901,10.0,21.333,21.321,0.96]
[1674218537205,10.0,21.333,21.32,17.0]
[1674218537416,10.0,21.335,21.32,17.0]
[1674218537722,113.5283,21.34,21.321,40.58]
[1674218537938,20.0,21.339,21.323,10.0]
[1674218538125,10.0,21.341,21.324,30.85]
[1674218538342,10.0,21.341,21.325,20.96]
[1674218538548,10.0,21.341,21.327,10.0]
[1674218538762,10.0,21.341,21.328,20.0]
[1674218538984,10.0,21.343,21.328,20.0]
[1674218541208,10.0,21.343,21.329,17.0]
[1674218541630,10.0,21.343,21.326,46.22908664]
[1674218541947,73.11,21.342,21.324,29.82]
[1674218542161,73.11,21.342,21.325,17.0]
[1674218542381,10.0,21.341,21.325,17.0]
[1674218542687,35.15,21.342,21.326,25.74908664]
[1674218542895,10.0,21.345,21.327,46.67]
[1674218542896,45.14,21.345,21.327,46.67]
[1674218543108,45.14,21.345,21.328,10.96]
[1674218543631,45.14,21.345,21.328,10.0]
[1674218543945,45.14,21.345,21.329,133.8999]
[1674218544363,17.96,21.344,21.33,10.0]
[1674218544776,10.0,21.343,21.329,133.8999]
[1674218546550,17.96,21.342,21.329,133.8999]
[1674218546769,10.0,21.341,21.329,133.8999]
[1674218547101,10.0,21.341,21.329,20.0]
[1674218547291,10.0,21.339,21.328,20.0]
[1674218547622,17.96,21.338,21.326,20.0]
[1674218548981,17.96,21.338,21.327,10.0]
[1674218549201,0.96,21.338,21.328,20.0]
[1674218549510,35.15,21.342,21.329,10.0]
[1674218549701,10.0,21.343,21.329,10.0]
[1674218550853,35.14,21.345,21.331,10.0]
[1674218551070,45.14,21.348,21.331,37.68]
[1674218551280,0.96,21.346,21.331,37.68]
[1674218551501,45.14,21.348,21.332,32.74908664]
[1674218551502,109.558,21.347,21.332,32.74908664]
[1674218551700,109.558,21.347,21.333,28.22]
[1674218551916,109.558,21.347,21.334,17.96]
[1674218552126,109.558,21.347,21.335,10.0]
[1674218552446,10.0,21.346,21.332,29.56]
[1674218553070,10.0,21.346,21.333,10.0]
[1674218553694,109.558,21.347,21.333,10.0]
[1674218553914,35.14,21.35,21.334,32.74908664]
[1674218554221,20.0,21.349,21.336,10.0]
[1674218554439,20.0,21.349,21.337,17.0]
[1674218554649,20.0,21.35,21.337,17.0]
[1674218554860,10.0,21.349,21.337,17.0]
[1674218555188,10.0,21.349,21.335,30.74]
[1674218555402,17.96,21.348,21.334,32.27]
[1674218555797,10.0,21.347,21.33,86.47908664]
[1674218556008,17.96,21.346,21.33,86.47908664]
[1674218556240,10.0,21.345,21.33,76.47908664]
[1674218556452,17.96,21.344,21.33,66.48908664]
[1674218557165,10.0,21.343,21.33,66.48908664]
[1674218558006,10.0,21.343,21.331,10.0]
[1674218558216,10.0,21.345,21.331,10.0]
[1674218559160,10.0,21.347,21.331,10.0]
[1674218559502,10.0,21.347,21.332,48.31]
[1674218559815,65.14,21.35,21.333,10.0]
[1674218560003,10.0,21.35,21.334,17.96]
[1674218560209,10.0,21.35,21.335,30.94]
[1674218560436,35.14,21.349,21.331,30.94]
[1674218560647,10.0,21.348,21.329,113.3727]
[1674218560854,10.0,21.346,21.33,10.0]
[1674218561719,10.0,21.346,21.33,24.78908664]
[1674218562332,10.0,21.346,21.332,10.0]
[1674218562864,10.0,21.346,21.33,10.0]
[1674218563078,10.0,21.344,21.33,10.0]
[1674218565718,10.0,21.344,21.329,138.16178664]
[1674218566034,17.96,21.343,21.329,113.3727]
[1674218566346,10.0,21.342,21.329,113.3727]
[1674218566559,10.0,21.34,21.326,29.81]
[1674218566770,17.96,21.341,21.327,20.0]
[1674218567086,17.96,21.341,21.328,10.0]
[1674218567271,17.96,21.341,21.33,10.0]
[1674218567482,17.96,21.341,21.329,20.0]
[1674218568111,17.96,21.341,21.327,20.0]
[1674218568657,17.96,21.341,21.328,10.0]
[1674218568870,17.96,21.341,21.329,20.0]
[1674218569810,17.96,21.341,21.33,10.0]
[1674218571059,10.0,21.34,21.329,20.0]
[1674218571274,17.96,21.339,21.329,20.0]
[1674218572873,0.96,21.339,21.329,20.0]
[1674218573078,17.96,21.341,21.329,20.0]
[1674218574456,10.0,21.34,21.329,20.0]
[1674218574653,17.96,21.339,21.327,20.0]
[1674218574981,10.0,21.338,21.326,20.0]
[1674218575191,0.96,21.337,21.324,25.25]
[1674218575407,17.96,21.337,21.321,24.67]
[1674218575717,10.0,21.335,21.32,24.67]
[1674218575908,17.96,21.334,21.319,33.9]
[1674218576240,10.0,21.333,21.319,33.9]
[1674218577603,10.0,21.335,21.319,33.9]
[1674218577819,10.0,21.336,21.32,19.96]
[1674218578027,10.0,21.336,21.321,51.15]
[1674218578428,10.0,21.336,21.321,33.19]
[1674218578657,10.0,21.336,21.321,23.19]
[1674218578869,10.0,21.336,21.32,19.96]
[1674218579068,10.0,21.334,21.319,33.2]
[1674218579274,0.96,21.333,21.319,33.2]
[1674218579477,17.96,21.333,21.319,33.2]
[1674218580844,35.15,21.341,21.32,34.73908664]
[1674218581053,35.14,21.345,21.321,50.19]
[1674218581269,151.1047,21.347,21.322,20.0]
[1674218581475,151.1047,21.347,21.323,41.15]
[1674218581695,151.1047,21.347,21.325,10.0]
[1674218582001,151.1047,21.347,21.327,10.0]
[1674218582342,115.9647,21.347,21.33,19.96]
[1674218582527,115.9647,21.347,21.331,42.21]
[1674218582743,10.0,21.358,21.333,10.0]
[1674218582945,35.13,21.357,21.334,42.44]
[1674218583158,10.0,21.356,21.335,30.0]
[1674218583497,10.0,21.356,21.337,10.0]
[1674218583682,10.0,21.356,21.338,62.88]
[1674218584209,10.0,21.356,21.338,45.88]
[1674218584422,10.0,21.356,21.338,20.0]
[1674218584423,10.0,21.35,21.338,20.0]
[1674218584653,10.0,21.35,21.335,20.0]
[1674218584975,10.0,21.35,21.336,25.41]
[1674218585154,10.0,21.35,21.337,20.0]
[1674218585365,10.0,21.35,21.338,25.85]
[1674218585575,10.0,21.35,21.339,20.0]
[1674218586321,10.0,21.35,21.335,30.0]
[1674218586533,10.0,21.35,21.336,26.11]
[1674218587067,10.0,21.348,21.334,26.23]
[1674218587386,0.96,21.347,21.332,26.12]
[1674218587695,17.96,21.347,21.331,10.0]
[1674218587908,10.0,21.346,21.33,25.58]
[1674218588120,17.96,21.345,21.33,25.58]
[1674218588431,10.0,21.344,21.328,25.3]
[1674218588646,17.96,21.343,21.328,25.3]
[1674218588842,10.0,21.342,21.328,25.3]
[1674218589462,10.0,21.342,21.33,10.0]
[1674218589916,17.96,21.343,21.33,10.0]
[1674218590223,45.14,21.347,21.33,10.0]
[1674218590417,45.14,21.35,21.331,42.16]
[1674218590636,10.0,21.35,21.332,10.0]
[1674218590844,10.0,21.35,21.333,43.68]
[1674218591048,10.0,21.35,21.334,10.0]
[1674218591259,10.0,21.35,21.335,27.28]
[1674218591575,10.0,21.35,21.334,28.7]
[1674218592107,10.0,21.35,21.332,10.0]
[1674218592108,17.96,21.347,21.333,30.04]
[1674218592314,10.0,21.346,21.333,30.04]
[1674218593799,10.0,21.346,21.334,10.0]
[1674218594836,10.0,21.346,21.333,30.04]
[1674218595563,10.0,21.346,21.334,10.0]
[1674218598635,10.0,21.346,21.333,30.04]
[1674218599580,17.96,21.345,21.328,34.15]
[1674218599793,45.15,21.344,21.327,44.16]
[1674218600002,17.96,21.343,21.327,44.16]
[1674218600520,10.0,21.342,21.327,44.16]
[1674218600933,10.0,21.34,21.327,44.16]
[1674218601581,37.96,21.339,21.325,29.28]
[1674218601799,10.0,21.338,21.324,28.77]
[1674218601991,17.96,21.337,21.324,28.77]
[1674218602207,17.96,21.337,21.323,28.89]
[1674218602745,10.0,21.336,21.323,28.89]
[1674218603274,10.0,21.336,21.322,29.18]
[1674218603486,10.0,21.334,21.321,29.19]
[1674218603793,10.0,21.334,21.322,10.0]
[1674218604003,0.96,21.335,21.322,10.0]
[1674218604423,17.96,21.335,21.322,10.0]
[1674218604629,10.0,21.336,21.322,10.0]
[1674218605565,17.96,21.335,21.321,39.19]
[1674218605783,10.0,21.334,21.321,39.19]
[1674218606319,10.0,21.334,21.321,29.19]
[1674218606836,10.0,21.336,21.322,10.0]
[1674218607051,10.0,21.334,21.321,29.19]
[1674218607266,0.96,21.333,21.32,65.23908664]
[1674218607479,0.96,21.333,21.32,34.73908664]
[1674218607668,10.0,21.334,21.32,34.73908664]
[1674218610498,10.0,21.334,21.32,14.78908664]
[1674218614221,10.0,21.334,21.319,27.51]
[1674218614222,17.96,21.333,21.319,27.51]
[1674218614410,53.12,21.333,21.318,110.5915]
[1674218614735,10.0,21.332,21.319,20.0]
[1674218617866,10.0,21.334,21.319,20.0]
[1674218618103,10.0,21.334,21.32,17.0]
[1674218618312,10.0,21.334,21.321,10.0]
[1674218618718,10.0,21.334,21.32,52.27]
[1674218618719,10.0,21.334,21.32,25.27]
[1674218619268,10.0,21.334,21.319,45.44]
[1674218619790,0.96,21.333,21.319,45.44]
[1674218620512,0.96,21.333,21.319,20.0]
[1674218620712,17.96,21.333,21.319,20.0]
[1674218621132,10.0,21.332,21.319,20.0]
[1674218621361,0.96,21.331,21.319,20.0]
[1674218621556,10.0,21.332,21.319,20.0]
[1674218623255,9.91300139,21.332,21.319,20.0]
[1674218623459,0.96,21.331,21.319,20.0]
[1674218626384,9.91300139,21.332,21.319,43.21]
[1674218627880,9.91300139,21.332,21.319,20.0]
[1674218630300,17.96,21.331,21.319,20.0]
[1674218630824,10.0,21.33,21.319,20.0]
[1674218632718,9.5,21.33,21.319,20.0]
[1674218633562,17.96,21.331,21.319,20.0]
[1674218633869,17.96,21.331,21.32,10.0]
[1674218634084,10.0,21.334,21.32,10.0]
[1674218634490,10.0,21.336,21.32,24.99]
[1674218634707,10.0,21.336,21.322,10.0]
[1674218636071,0.96,21.335,21.32,48.18]
[1674218636602,10.0,21.334,21.32,48.18]
[1674218639238,10.0,21.334,21.32,48.07781064]
[1674218640069,10.0,21.336,21.322,10.0]
[1674218640271,10.0,21.336,21.322,33.18]
[1674218640683,10.0,21.336,21.322,23.18]
[1674218641119,10.0,21.336,21.321,23.16]
[1674218641327,10.0,21.334,21.321,23.16]
[1674218642169,10.0,21.338,21.321,23.16]
[1674218642385,10.0,21.338,21.322,27.96]
[1674218642692,10.0,21.338,21.323,23.16]
[1674218643517,10.0,21.338,21.321,23.16]
[1674218644149,17.96,21.337,21.321,23.16]
[1674218644374,10.0,21.336,21.321,23.16]
[1674218644695,10.0,21.334,21.321,23.16]
[1674218646468,17.96,21.333,21.318,110.5915]
[1674218646682,10.0,21.331,21.314,23.17]
[1674218646997,10.0,21.329,21.314,23.17]
[1674218647207,17.96,21.328,21.314,23.17]
[1674218647416,10.0,21.327,21.312,23.25]
[1674218647630,17.96,21.326,21.312,23.25]
[1674218648047,10.0,21.327,21.313,10.0]
[1674218648258,10.0,21.327,21.315,10.0]
[1674218648468,10.0,21.327,21.314,23.25]
[1674218648684,17.0,21.326,21.314,23.25]
[1674218649113,17.0,21.326,21.312,23.25]
[1674218649855,10.0,21.327,21.312,23.25]
[1674218650064,10.0,21.327,21.313,0.96]
[1674218650272,10.0,21.327,21.313,27.96]
[1674218650591,17.0,21.326,21.312,23.25]
[1674218650999,17.0,21.326,21.312,64.87678078]
[1674218651755,10.0,21.327,21.312,64.87678078]
[1674218652058,17.0,21.326,21.312,64.87678078]
[1674218652272,10.0,21.327,21.313,10.0]
[1674218652591,10.0,21.325,21.312,64.87678078]
[1674218653723,10.0,21.325,21.312,41.62678078]
[1674218653934,10.0,21.325,21.313,23.29]
[1674218654138,10.0,21.323,21.313,23.29]
[1674218654367,10.0,21.323,21.312,23.29]
[1674218654575,10.0,21.323,21.311,23.29]
[1674218655934,17.0,21.322,21.31,28.92646162]
[1674218656143,10.0,21.323,21.311,23.3]
[1674218657003,17.0,21.322,21.31,13.93646162]
[1674218657224,10.0,21.321,21.31,13.93646162]
[1674218658377,10.0,21.321,21.311,41.62678078]
[1674218660156,10.0,21.323,21.311,41.62678078]
[1674218660568,10.0,21.323,21.311,55.5632424]
[1674218661826,17.0,21.322,21.311,55.5632424]
[1674218662139,10.0,21.321,21.311,55.5632424]
[1674218663210,10.0,21.321,21.311,41.62678078]
[1674218663396,10.0,21.321,21.308,37.26646162]
[1674218663606,10.0,21.321,21.309,20.0]
[1674218663837,10.0,21.321,21.31,23.33]
[1674218664046,10.0,21.321,21.309,57.26646162]
[1674218664268,17.0,21.322,21.309,57.26646162]
[1674218664446,17.0,21.322,21.31,13.93646162]
[1674218666567,0.96,21.321,21.309,61.62678078]
[1674218666975,0.96,21.321,21.309,75.5632424]
[1674218667934,0.96,21.321,21.31,10.0]
[1674218668153,0.96,21.321,21.309,75.5632424]
[1674218668886,10.96,21.321,21.309,75.5632424]
[1674218669071,17.0,21.32,21.309,75.5632424]
[1674218669935,10.0,21.321,21.31,23.35]
[1674218670351,10.0,21.321,21.309,98.9132424]
[1674218670592,10.0,21.321,21.309,84.97678078]
[1674218670826,10.0,21.323,21.31,10.0]
[1674218671122,10.0,21.324,21.31,38.88646162]
[1674218671311,10.0,21.324,21.312,10.0]
[1674218671522,10.0,21.324,21.311,23.33]
[1674218673142,10.0,21.33,21.312,23.93646162]
[1674218673449,150.4563,21.337,21.313,55.21646162]
[1674218673647,115.2963,21.337,21.314,20.0]
[1674218673864,115.2963,21.337,21.32,14.95]
[1674218674080,10.0,21.336,21.321,34.7]
[1674218674479,115.2963,21.337,21.321,34.7]
[1674218674717,115.2963,21.337,21.321,81.15497865]
[1674218675111,10.0,21.336,21.321,81.15497865]
[1674218676598,17.0,21.335,21.321,81.15497865]
[1674218676812,17.0,21.335,21.321,71.15497865]
[1674218677026,10.96,21.334,21.321,71.15497865]
[1674218677244,17.0,21.333,21.321,71.15497865]
[1674218679233,10.0,21.336,21.321,71.15497865]
[1674218679429,10.0,21.336,21.322,10.0]
[1674218679865,10.0,21.336,21.323,26.04]
[1674218680598,10.0,21.336,21.322,26.31]
[1674218680792,17.0,21.335,21.322,26.31]
[1674218680997,10.0,21.334,21.322,26.31]
[1674218682599,10.0,21.334,21.321,46.45497865]
[1674218682802,10.0,21.332,21.32,14.95]
[1674218683011,17.0,21.331,21.32,14.95]
[1674218683522,10.0,21.33,21.32,14.95]
[1674218683952,10.0,21.33,21.317,27.28]
[1674218684164,17.0,21.329,21.319,20.0]
[1674218684374,10.0,21.328,21.319,20.0]
[1674218688699,10.0,21.33,21.319,20.0]
[1674218690064,17.96,21.329,21.317,27.65]
[1674218690245,17.96,21.329,21.312,27.51]
[1674218690587,10.0,21.328,21.312,27.51]
[1674218690795,0.96,21.327,21.312,27.51]
[1674218691110,10.0,21.326,21.312,27.51]
[1674218691314,10.0,21.326,21.313,10.0]
[1674218691737,10.0,21.326,21.312,27.51]
[1674218691941,10.0,21.324,21.312,27.51]
[1674218692362,10.0,21.324,21.313,10.0]
[1674218692570,10.0,21.326,21.313,10.0]
[1674218692791,10.0,21.326,21.314,26.67]
[1674218692976,10.0,21.324,21.312,26.67]
[1674218693740,10.0,21.324,21.313,10.0]
[1674218693941,10.0,21.324,21.314,27.32]
[1674218694155,10.0,21.326,21.313,10.0]
[1674218694565,17.0,21.325,21.314,28.25]
[1674218695736,10.0,21.324,21.314,28.25]
[1674218695951,10.0,21.324,21.313,28.73]
[1674218696263,17.0,21.323,21.313,28.73]
[1674218696660,10.0,21.324,21.313,28.73]
[1674218696872,10.0,21.326,21.313,28.73]
[1674218697090,10.0,21.326,21.314,10.0]
[1674218697727,10.0,21.326,21.315,20.0]
[1674218697938,10.0,21.328,21.315,50.66]
[1674218698144,10.0,21.328,21.316,10.0]
[1674218698360,17.0,21.327,21.317,20.0]
[1674218700456,10.0,21.333,21.318,10.0]
[1674218700667,10.0,21.333,21.319,20.0]
[1674218700868,10.0,21.333,21.32,14.98]
[1674218701087,108.1599,21.335,21.321,0.96]
[1674218701417,10.0,21.334,21.322,32.5]
[1674218701632,45.15,21.339,21.323,10.96]
[1674218701822,10.0,21.339,21.324,33.25]
[1674218702459,10.0,21.339,21.325,10.0]
[1674218702877,115.555,21.34,21.33,14.99]
[1674218703295,10.0,21.341,21.33,14.99]
[1674218703521,10.0,21.342,21.33,14.99]
[1674218704890,17.0,21.341,21.33,14.99]
[1674218705104,17.0,21.341,21.33,46.49]
[1674218705616,17.0,21.342,21.331,10.0]
[1674218705809,10.0,21.346,21.331,10.0]
[1674218706022,17.0,21.345,21.33,46.49]
[1674218706352,17.96,21.345,21.33,46.49]
[1674218706668,10.0,21.344,21.33,46.49]
[1674218707083,17.96,21.343,21.33,46.49]
[1674218707285,17.0,21.343,21.33,46.49]
[1674218707728,17.0,21.343,21.33,14.99]
[1674218707923,10.0,21.342,21.33,14.99]
[1674218708248,10.0,21.34,21.33,46.24]
[1674218709081,17.0,21.339,21.33,14.99]
[1674218709408,17.0,21.339,21.324,31.34]
[1674218709609,10.0,21.338,21.325,20.0]
[1674218709925,10.0,21.338,21.324,31.34]
[1674218709926,17.0,21.337,21.324,31.34]
[1674218710144,10.0,21.338,21.321,30.88]
[1674218710346,10.0,21.338,21.322,10.0]
[1674218710551,10.0,21.338,21.323,30.47]
[1674218710974,10.0,21.34,21.324,10.0]
[1674218711175,10.0,21.34,21.326,10.0]
[1674218711599,10.0,21.34,21.328,10.0]
[1674218712025,17.0,21.339,21.33,14.95]
[1674218712232,35.14,21.345,21.33,14.95]
[1674218712432,162.6478,21.348,21.331,32.58]
[1674218712643,10.0,21.347,21.332,10.0]
[1674218713082,10.0,21.347,21.333,0.96]
[1674218713291,10.0,21.347,21.334,32.25]
[1674218713791,10.0,21.347,21.335,0.96]
[1674218714016,127.5078,21.348,21.335,0.96]
[1674218714017,10.0,21.348,21.335,0.96]
[1674218714233,10.0,21.348,21.336,33.89]
[1674218714452,10.0,21.348,21.337,20.96]
[1674218714664,10.0,21.349,21.338,10.0]
[1674218714880,10.0,21.35,21.339,20.0]
[1674218716120,10.0,21.355,21.34,0.96]
[1674218716547,10.0,21.355,21.342,10.0]
[1674218716765,10.0,21.355,21.343,0.96]
[1674218717912,10.0,21.355,21.342,0.96]
[1674218718129,10.0,21.355,21.341,34.99]
[1674218718350,10.0,21.355,21.338,35.16]
[1674218718542,10.0,21.355,21.339,37.96]
[1674218718759,10.0,21.355,21.34,35.15]
[1674218719076,10.0,21.355,21.341,0.96]
[1674218720546,10.0,21.355,21.34,35.15]
[1674218720762,10.0,21.355,21.339,20.0]
[1674218720973,17.0,21.354,21.339,20.0]
[1674218721181,10.0,21.353,21.339,20.0]
[1674218721395,10.0,21.353,21.337,55.16]
[1674218721820,10.0,21.353,21.338,27.96]
[1674218722136,10.0,21.353,21.339,55.15]
[1674218722339,10.0,21.353,21.34,0.96]
[1674218723910,17.0,21.352,21.339,20.0]
[1674218724127,10.0,21.351,21.338,20.0]
[1674218724335,10.0,21.351,21.336,20.0]
[1674218724535,10.0,21.351,21.337,46.12]
[1674218724747,10.0,21.351,21.338,20.0]
[1674218725694,10.0,21.351,21.339,0.96]
[1674218725900,20.0,21.35,21.339,0.96]
[1674218726219,35.14,21.349,21.329,147.5399]
[1674218726443,17.0,21.348,21.329,147.5399]
[1674218726762,46.1,21.347,21.329,112.3699]
[1674218726982,10.0,21.345,21.33,10.0]
[1674218727194,10.0,21.345,21.33,45.17]
[1674218728323,10.0,21.345,21.331,0.96]
[1674218728991,35.14,21.348,21.331,17.96]
[1674218729171,35.14,21.348,21.332,13.93646162]
[1674218729382,144.7502,21.349,21.334,10.0]
[1674218729610,109.6102,21.349,21.335,0.96]
[1674218730130,109.6102,21.349,21.335,17.96]
[1674218730350,109.6102,21.349,21.337,10.0]
[1674218730553,109.6102,21.349,21.338,36.12]
[1674218730764,109.6102,21.349,21.34,10.0]
[1674218731380,35.13,21.356,21.34,10.0]
[1674218731586,10.0,21.353,21.34,124.5554]
[1674218731797,10.0,21.353,21.34,10.0]
[1674218732007,10.0,21.353,21.341,0.96]
[1674218732962,10.0,21.353,21.34,10.0]
[1674218733301,10.0,21.353,21.341,0.96]
[1674218735914,10.0,21.353,21.34,0.96]
[1674218738118,45.13,21.355,21.34,0.96]
[1674218738329,10.0,21.355,21.341,10.0]
[1674218738545,10.0,21.355,21.342,17.96]
[1674218738863,10.0,21.355,21.342,0.96]
[1674218739060,10.0,21.355,21.341,0.96]
[1674218739265,10.0,21.355,21.341,10.96]
[1674218739599,120.8633,21.356,21.342,17.0]
[1674218739807,155.9933,21.356,21.343,0.96]
[1674218740013,10.0,21.355,21.343,0.96]
[1674218742424,10.0,21.355,21.343,10.96]
[1674218742635,45.12,21.359,21.344,17.0]
[1674218742956,45.12,21.359,21.345,0.96]
[1674218743357,45.12,21.359,21.344,20.0]
[1674218743568,45.12,21.359,21.342,20.0]
[1674218743988,10.0,21.357,21.342,20.0]
[1674218744414,45.13,21.357,21.342,20.0]
[1674218744630,45.13,21.357,21.343,0.96]
[1674218745164,45.13,21.357,21.343,10.96]
[1674218745367,45.13,21.357,21.344,37.0]
[1674218745572,45.13,21.357,21.345,0.96]
[1674218746833,10.0,21.358,21.35,14.99]
[1674218747057,45.12,21.36,21.35,14.99]
[1674218748610,10.0,21.368,21.35,14.99]
[1674218749030,10.0,21.368,21.351,27.0]
[1674218749241,35.1,21.372,21.352,35.13]
[1674218749472,10.0,21.367,21.353,0.96]
[1674218749890,10.0,21.367,21.353,17.0]
[1674218750099,10.0,21.367,21.354,0.96]
[1674218750437,10.0,21.367,21.354,10.96]
[1674218751366,10.0,21.367,21.355,17.0]
[1674218751696,10.0,21.368,21.356,0.96]
[1674218751920,10.0,21.368,21.354,0.96]
[1674218752228,45.11,21.368,21.353,0.96]
[1674218752753,45.11,21.368,21.352,0.96]
[1674218752940,17.0,21.367,21.352,0.96]
[1674218753144,10.0,21.366,21.352,0.96]
[1674218753789,10.0,21.366,21.352,17.96]
[1674218754004,10.0,21.366,21.352,0.96]
[1674218754202,45.11,21.366,21.35,14.99]
[1674218754415,45.11,21.366,21.352,10.0]
[1674218754950,45.11,21.366,21.353,16.63586546]
[1674218755162,10.0,21.366,21.351,17.0]
[1674218755579,10.0,21.366,21.352,0.96]
[1674218755786,10.0,21.366,21.352,10.96]
[1674218757467,45.11,21.367,21.352,10.96]
[1674218757681,45.11,21.367,21.353,17.0]
[1674218757892,10.0,21.367,21.354,0.96]
[1674218758744,45.1,21.371,21.36,14.99]
[1674218758745,35.1,21.371,21.36,14.99]
[1674218759053,10.0,21.378,21.361,0.96]
[1674218759239,10.0,21.378,21.36,14.99]
[1674218759240,35.09,21.377,21.36,14.99]
[1674218759659,10.0,21.376,21.36,14.99]
[1674218759868,35.1,21.375,21.36,14.99]
[1674218760099,10.0,21.376,21.362,10.0]
[1674218760328,35.1,21.375,21.362,10.0]
[1674218760512,35.1,21.375,21.363,0.96]
[1674218760727,10.0,21.376,21.363,0.96]
[1674218761129,35.1,21.375,21.363,0.96]
[1674218761570,10.0,21.374,21.363,0.96]
[1674218761795,35.1,21.375,21.363,0.96]
[1674218761971,10.0,21.376,21.363,0.96]
[1674218762182,10.0,21.376,21.363,17.96]
[1674218762390,10.0,21.376,21.363,0.96]
[1674218762624,10.0,21.376,21.36,14.99]
[1674218762832,35.1,21.375,21.36,14.99]
[1674218763021,10.0,21.374,21.36,14.99]
[1674218763238,17.0,21.373,21.36,14.99]
[1674218763651,10.0,21.374,21.36,14.99]
[1674218764496,17.0,21.373,21.36,14.99]
[1674218764710,10.0,21.372,21.36,14.99]